Cogmind - Beta 14 @@@ ROGUE MODE // 2024.11.28 @ 20:58:44 Player: Komeiji O. Result: Destroyed by G-47 Trooper with Particle Gun Performance ------------- Evolutions (0) 0 Regions Visited (2) 400 Robots Destroyed (21) 105 Value Destroyed (531) 531 Prototype IDs (0) 0 Alien Tech Used (0) 0 Bonus (0) 0 TOTAL SCORE: 1036 Bonus ------- None Cogmind --------- Core Integrity 0/250 Matter 211/300 Energy 160/160 System Corruption 4% Temperature Cool (9) Movement Rolling (80) Location -10/Mines Parts ------- > --- POWER (1) -------- Light Nuclear Core > --- PROPULSION (2) --- Wheel Wheel > --- UTILITY (2) ------ Improved Heat Sink Small Storage Unit > --- WEAPON (2) ------- Beam Cannon Grenade Launcher > --- INVENTORY (8) ---- Light Ion Engine Seismic Detector Hacking Suite Assault Rifle Assault Rifle Datajack Hammer Peak State ------------ > --- POWER ------------ Light Nuclear Core > --- PROPULSION ------- Light Treads Light Treads > --- UTILITY ---------- Improved Heat Sink Small Storage Unit > --- WEAPON ----------- Beam Cannon Assault Rifle > --- INVENTORY -------- Light Ion Engine Wheel Wheel Seismic Detector Hacking Suite Grenade Launcher Datajack Hammer [Rating: 12] Favorites ----------- Power Light Nuclear Core Engine Ion Engine Power Core Light Nuclear Core Propulsion Light Treads Treads Light Treads Wheel Wheel Utility Small Storage Unit Device Improved Heat Sink Storage Small Storage Unit Weapon Assault Rifle Energy Gun EM Pulse Gun Energy Cannon Beam Cannon Ballistic Gun Assault Rifle Launcher Grenade Launcher Impact Weapon Hammer Build | -11 -10 -10 ------- Run | Yrd Mat Min Slots Evolved . | . . . Power . | . . . Propulsion . | . . . Utility . | . . . Weapon . | . . . Parts Attached 26 | 9 14 3 Power 4 | 2 2 . Engine 3 | 2 1 . Core 1 | . 1 . Reactor . | . . . Propulsion 7 | 2 4 1 Treads 5 | 2 3 . Leg . | . . . Wheel 2 | . 1 1 Hover . | . . . Flight . | . . . Utility 5 | 2 3 . Device 4 | 1 3 . Storage 1 | 1 . . Processor . | . . . Hackware . | . . . Protection . | . . . Artifact . | . . . Weapon 10 | 3 5 2 Energy Gun 2 | 1 1 . Energy Cannon 1 | . 1 . Ballistic Gun 4 | 2 2 . Ballistic Cannon . | . . . Launcher 2 | . 1 1 Special Weapon . | . . . Impact Weapon 1 | . . 1 Slashing Weapon . | . . . Piercing Weapon . | . . . Special Melee Weapon . | . . . Unidentified Prototypes . | . . . Parts Lost 2 | . 1 1 Power . | . . . Propulsion 2 | . 1 1 Utility . | . . . Weapon . | . . . Highest Loss Streak 1 | . 1 1 To Critical Strikes . | . . . Average Slot Usage (%) 98 | . 98 100 Engine 3 | . 4 . Core 10 | . 9 14 Treads 23 | . 25 12 Wheel 4 | . 1 15 Device 14 | . 14 14 Storage 14 | . 14 14 Energy Cannon 10 | . 9 14 Ballistic Gun 14 | . 17 1 Impact Weapon 2 | . . 10 Peak Build Rating 12 | 7 12 12 Average Rating 9 | 5 9 11 On Entrance 6 | . 7 12 Naked Turns . | . . . Heaviest Build 17 | 14 16 17 Greatest Support 40 | 40 40 20 Greatest Overweight (x) 1 | . 1 1 Average Overweight (x) . | . . . Largest Inventory Capacity 8 | 8 8 8 Average Capacity 7 | 7 8 8 Most Carried 8 | 6 8 8 Average Carried 7 | 3 7 7 Final Capacity 8 | 8 8 8 Final Carried 8 | 6 8 7 Class Distribution -------------------- 100% | Mutant Dominant Class ---------------- Mutant | -10/Materials Mutant | -10/Mines Resources | -11 -10 -10 ----------- Run | Yrd Mat Min Matter Collected 617 | 205 350 62 Remotely . | . . . Salvage Created 585 | 15 432 138 Parts 54 | 5 41 8 Haulers Intercepted . | . . . Recyclers Shooed 2 | . 2 . Parts Field Recycled . | . . . Retrieved Matter . | . . . Parts Self-Destructed . | . . . Prevented . | . . . Kills | -11 -10 -10 ------- Run | Yrd Mat Min Combat Hostiles Destroyed 17 | . 10 7 Melee 1 | . . 1 Guns 5 | . 5 . Cannons 4 | . 2 2 AOE 7 | . 3 4 Classes Destroyed 7 | 1 5 1 Tunneler 2 | 1 . 1 Mechanic 1 | . 1 . Operator 1 | . 1 . Watcher 3 | . 3 . Swarmer 3 | . 3 . Grunt 11 | . 7 4 Assembled 3 | . . 3 Best Kill Streak 4 | 1 4 3 Combat Bots Only 4 | . 4 3 Max Kills in Single Turn 2 | 1 2 2 Gunslinging . | . . . Exploded 2 | . 2 2 Melee 1 | . . 1 Uniques/NPCs Destroyed . | . . . Combat | -11 -10 -10 -------- Run | Yrd Mat Min Hostile Shots Fired 82 | . 51 31 Missed 16 | . 10 6 Damage Taken 832 | . 494 338 Core 263 | . 134 129 Absorbed by Shields . | . . . Core Remaining (%) 100 | 100 . . Volleys Fired 73 | 4 49 20 Largest 2 | 2 2 1 Hottest 80 | 40 80 60 Shots Fired 111 | 8 83 20 Gun 67 | 8 59 . Cannon 35 | . 22 13 Launcher 9 | . 2 7 Special . | . . . Kinetic 67 | 8 59 . Thermal 35 | . 22 13 Explosive 9 | . 2 7 Electromagnetic . | . . . Robot Hit Streak 14 | 3 14 6 Robot Miss Streak 3 | 2 3 1 Penetration Max . | . . . Secondary Targets . | . . . Shots Hit Robots 79 | 5 57 17 Core Hits 42 | 1 28 13 Critical Kills . | . . . Critical Parts Destroyed 1 | . . 1 Critical Strikes 1 | . . 1 Smash 1 | . . 1 Melee Attacks 23 | . . 23 Impact 23 | . . 23 Slashing . | . . . Piercing . | . . . Sneak Attacks 1 | . . 1 Combat Hostiles . | . . . Follow-up Attacks . | . . . Damage Inflicted 1681 | 56 851 774 Guns 554 | 56 498 . Cannons 381 | . 225 156 Explosions 673 | . 118 555 Melee 63 | . . 63 Ramming 10 | . 10 . Kinetic 554 | 56 498 . Thermal 381 | . 225 156 Explosive 673 | . 118 555 Electromagnetic . | . . . Impact 63 | . . 63 Slashing . | . . . Piercing . | . . . Highest Corruption 4 | . 4 4 Average Corruption 3 | . 3 4 Corruption Purged . | . . . Corruption Blocked . | . . . Effects 16 | . 7 9 Message Errors 5 | . 2 3 Matter Fused 2 | . 1 1 Heat Flow Errors 1 | . 1 . Energy Discharges 3 | . 1 2 Parts Rejected 1 | . 1 . Data Loss (minor) 3 | . . 3 Alerts 1 | . 1 . Overload Shots . | . . . Overflow Damage 38 | . . 38 Projectiles . | . . . Explosions . | . . . Melee 38 | . . 38 Knockbacks . | . . . Impact . | . . . Kinetic . | . . . Secondary . | . . . Self-Inflicted Damage 40 | . . 40 Shots 1 | . . 1 Rammed 4 | . 4 . Targets Rammed 4 | . 4 . Kicked . | . . . Crushed . | . . . Highest Temperature 186 | . 186 60 Average Temperature 31 | . 30 33 Received Heat Transfer 412 | . 240 172 Siege Activations . | . . . Robots Corrupted . | . . . Combat Hostiles . | . . . Parts Fried 3 | . . 3 Impact Corruptions 2 | . . 2 Robots Melted . | . . . Combat Hostiles . | . . . Parts Melted . | . . . Heat Transferred 814 | . 481 333 Parts Sabotaged . | . . . Parts Stolen . | . . . Parts Stripped . | . . . Power Chain Reactions . | . . . Alert | -11 -10 -10 ------- Run | Yrd Mat Min Peak Influence 229 | 5 229 169 Initial 14 | . 3 14 Average 53 | 1 60 47 Maximum Alert Level 1 | . 1 . Low Security (%) 99 | 100 98 100 Level 1 . | . 1 . Level 2 . | . . . Level 3 . | . . . Level 4 . | . . . Level 5 . | . . . High Security . | . . . Max Security . | . . . Squads Dispatched 1 | . 1 . Investigation . | . . . Extermination . | . . . Reinforcement 1 | . 1 . Assault . | . . . Garrison . | . . . Intercept . | . . . Searches Triggered . | . . . Construction Impeded . | . . . Haulers Reinforced . | . . . Active Scanning Responses . | . . . Cargo Convoy Interrupts . | . . . Stealth | -11 -10 -10 --------- Run | Yrd Mat Min Distress Signals 2 | . 2 . Communications Jammed . | . . . Distress Signals . | . . . Times Spotted 34 | . 23 11 Peak Tracking Total 5 | . 5 4 Tactical Retreats 2 | . 1 1 Traps | -11 -10 -10 ------- Run | Yrd Mat Min Traps Triggered 4 | . 4 . Indirectly . | . . . Trap Hack Attempts . | . . . Triggered . | . . . Disarmed . | . . . Reprogrammed . | . . . Reused . | . . . Traps Extracted . | . . . Installed . | . . . Triggered . | . . . Machines | -11 -10 -10 ---------- Run | Yrd Mat Min Machines Disabled 1 | . 1 . Max in Single Turn 1 | . 1 . Machines Repaired . | . . . Machines Dismantled . | . . . Machines Sabotaged . | . . . Overloaded Fab Kills . | . . . Hacking | -11 -10 -10 --------- Run | Yrd Mat Min Machines Accessed 6 | . 6 . Terminals 6 | . 6 . Fabricators . | . . . Repair Stations . | . . . Recycling Units . | . . . Scanalyzers . | . . . Garrison Access . | . . . Total Hacks 16 | . 16 . Successful 6 | . 6 . Failed 10 | . 10 . Catastrophic 1 | . 1 . Database Lockouts . | . . . Manual 13 | . 13 . Terminals 16 | . 16 . Fabricators . | . . . Repair Stations . | . . . Recycling Units . | . . . Scanalyzers . | . . . Garrison Access . | . . . Terminal Hacks 1 | . 1 . Zone Layout 1 | . 1 . Fabricator Hacks . | . . . Repair Station Hacks . | . . . Recycling Unit Hacks . | . . . Scanalyzer . | . . . Garrison Access Hacks . | . . . Unauthorized Hacks 5 | . 5 . Terminals 5 | . 5 . Botnet 1 | . 1 . Skim 4 | . 4 . Fabricators . | . . . Repair Stations . | . . . Recycling Units . | . . . Scanalyzers . | . . . Garrison Access . | . . . Data Cores Recovered . | . . . Used . | . . . Hacking Detections 6 | . 6 . Full Trace Events . | . . . Feedback Events . | . . . Feedback Blocked . | . . . Robot Schematics Acquired . | . . . Robots Built . | . . . Authchips . | . . . Time . | . . . Total Robot Build Rating . | . . . Part Schematics Acquired . | . . . Parts Built . | . . . Authchips . | . . . Time . | . . . Total Part Build Rating . | . . . Parts Repaired . | . . . Time . | . . . Parts Recycled . | . . . Recycled Matter . | . . . Retrieved Matter . | . . . Retrieved Components . | . . . Parts Scanalyzed . | . . . Part Schematics Acquired . | . . . Parts Damaged . | . . . Bothacking | -11 -10 -10 ------------ Run | Yrd Mat Min Used RIF Installer . | . . . Robots Hacked . | . . . Non-combat . | . . . Combat . | . . . Robot Hacks Applied . | . . . Relay Couplers Released . | . . . Fabnet Peak Effective % . | . . . Robots Rewired . | . . . Allies Hacked . | . . . Hacks Repelled . | . . . Allies | -11 -10 -10 -------- Run | Yrd Mat Min Total Allies . | . . . Largest Group . | . . . Highest-Rated Group . | . . . Highest-Rated Ally . | . . . Total Orders . | . . . Ally Attacks . | . . . Total Damage . | . . . Kills . | . . . Allies Corrupted . | . . . Allies Melted . | . . . Intel | -11 -10 -10 ------- Run | Yrd Mat Min Robot Analysis Total . | . . . Derelict Logs Recovered 1 | . . 1 Drone Launches . | . . . Drone Recoveries . | . . . Exploration | -11 -10 -10 ------------- Run | Yrd Mat Min Turns Passed 1606 | 132 1204 270 Spaces Moved 921 | 66 681 174 Core 2 | 2 . . Treads 599 | 64 535 . Legs . | . . . Wheels 320 | . 146 174 Hover . | . . . Flight . | . . . Fastest Speed 50 | 50 95 80 Average Speed 136 | 156 146 92 Slowest Speed 160 | 160 160 95 Overloaded Moves . | . . . Propulsion Burnouts . | . . . Robots Hopped . | . . . Cave-ins Triggered . | . . . Exploration Rate (%) 44 | 5 97 32 Regions Visited 2 Branch Regions 1 Pre-discovered Areas . | . . . Known Exits Taken . | . . . Unknown Exits Taken 2 | 1 1 . Scrap Searched 1 | . . 1 Spaces Dug 3 | . . 3 Terrain Destroyed 63 | . 14 49 Melee 3 | . . 3 Projectile . | . . . AOE 60 | . 14 46 Terrain Rammed . | . . . Walls Destroyed . | . . . Machines Disabled . | . . . Actions | -11 -10 -10 --------- Run | Yrd Mat Min Total 1111 | 83 806 222 Wait 43 | . 41 2 Move 919 | 65 680 174 Hop . | . . . Pick Up 15 | 5 10 . Fast Attach 12 | 7 5 . Attach 5 | . 4 1 Detach . | . . . Swap 9 | 2 5 2 Drop 8 | . 8 . Fire 73 | 4 49 20 Melee 23 | . . 23 Ram . | . . . Kick . | . . . Crush 4 | . 4 . Escape Stasis . | . . . Rewire . | . . . Trap . | . . . Miscellaneous . | . . . Route ------- -11/Scrapyard -10/Materials (discovered 4 exits: [*Mat x3] / [*Min]) -10/Mines History --------- Turn | Location | Event 50 | -11/Scrapyard | Discovered new exit (range 16) 133 | -11/Scrapyard | Entered Materials 263 | -10/Materials | Discovered new exit (range 15) 302 | -10/Materials | Build established: Mutant 792 | -10/Materials | Discovered new exit (range 9) 1111 | -10/Materials | Discovered new exit (range 7) 1184 | -10/Materials | Core integrity fell below 50% 1241 | -10/Materials | Discovered new exit (range 9) 1337 | -10/Materials | Entered Mines 1354 | -10/Mines | Excavation squad dispatched 1354 | -10/Mines | A large section of the Mines collapsed 1475 | -10/Mines | Learned Materials emergency access door positions 1570 | -10/Mines | Core integrity fell below 20% 1604 | -10/Mines | Excavation squad dispatched 1607 | -10/Mines | Destroyed by G-47 Trooper with Particle Gun Last Messages --------------- 01509_ Wheel fried. 01509_ Mining Laser fried. 01509_ Wheel fried. 01509_ T-07 Excavator destroyed. 01518_ System corrupted: Energy discharge (-59). 01541_ System corrupted: Matter fused (-9). 01551_ T-07 Excavator is excavating. 01557_ The unstable cave ceiling collapses. 01559_ OQ>JPI|#GU7 XJAEURXNH 01572_ Lgt. Treads destroyed. 01574_ N3IQ#W2A84#IZRB>UXS>VU/AQJQB,>7 QBZP 01575_ G-34 Mercenary destroyed. 01588_ U-05 Engineer lays Concrete. 01589_ The unstable cave ceiling collapses. 01591_ T-07 Excavator is excavating. 01593_ K-01 Serf collects debris. 01597_ Acquired 5 matter. 01604_ ALERT: Derelict activity in mines confirmed. Dispatching additional escorted excavation squad. 01606_ G-34 Mercenary destroyed. Map ----- +----------------------------------------------------+ | | | | | | | | | | | ?????????????????????????????????????????????????? | | ?????????????????????????????????????????????????? | | ?????????????????????????????????????????????????? | | ??????????????????????####???????????????????????? | | ?????????????????????## ##??????????????????????? | | ????????????????????## #???????????????######## | | ???????????????????## ##????????????### # # | | ?????????????????### #???????????## | | ???????????????### #??###??????# | | ??????????????# #??# #?????# %[== | | ???????? """ ## ??# #???## !%** | | ??????????????? """ ?? ???# #### [% | | ??????????????? ""???? [ ???# # | | ??????????????? ?????? !%= ???## ## | | ??????????????????????? g ????### ###? | | ??????????????????????? ??????## #?? | | ???????????????????????# ???????# #?? | | ???????????????????????# #??????## ## ##?? | | ???????????????????????# #?????## #### ###??? | | ???????????????????????# #????## ##??# #????? | | ???????????????????????# @###### ##??# #????? | | ???????????????????????# ##?# #????? | | ???????????????????????# % #?# #????? | | ???????????????????????###### ## % #?# ????? | | ????????????????????????????#### % ##?# ????? | | ????????????????????????????# ##??# ##???? | | ?????????????????? ??????###### #???# ????? | | ?????????????????? ????## #??# ##??## ##### | | ????????????????? #?## ??# ###???# | | ????????????????? ## ??# #?????# ###### | | ????????????????? #?# #?????# ##????? | | ???????????????? ## #?????# #?????? | | ???????????????? #????# ?????? | | ???????????????? #????# ?????? | | ?????????????????????### #????# ?????? | | ???????????????????????## ##???? ?????? | | ????????????????????????## #????? ?????? | | ?????????????????????????## ##??? #?????? | | ??????????????????????????## #??? ??????? | | ???????????????????????????## #?? ??????? | | ????????????????????????????## ##?? ??????? | | ?????????????????????????????#####????? ??????? | | ?????????????????????????????????????????????????? | | ?????????????????????????????????????????????????? | | ?????????????????????????????????????????????????? | +----------------------------------------------------+ Best States ------------- Heat Dissipation 39 Energy Generation 14 Energy Capacity 250 Matter Stores 300 Matter Capacity 300 Sight Range 16 Terrain Scan Density 10 Evasion (%) 44 Recoil Reduction 2 Item Schematics ----------------- None Robot Schematics ------------------ None Fabricated ------------ Nothing Alien Tech Used ----------------- None Achievements -------------- None Challenges ------------ None Game ------ Seed SiegePropulsionTriangulator Manual? 0 Play Time 00:14:29 Cumulative 195.4 hours Start 2024.11.28 @ 20:47:00 End 2024.11.28 @ 20:58:44 Sessions 1 Manual Loads 0 Difficulty Rogue Special Mode None Game No. 70 Rogue 69 Adventurer 1 Explorer 0 Win Type - Total 4 Types 4/0/0/0/0/0/0/0/0 Lore% 54 Gallery% 67 Achievement% 53 Wizard Run 0 Options --------- Layout 0 ASCII 1 Keyboard 1 Movement Vi Keybinds 0 Fullscreen 2 Font 36/Terminus++ Map View 76x50 Zoom Use 0% Tactical HUD 1 Map Filters NONE Filters NONE Steam 1 RUN: ea5d79d7-c1b2-4988-8f7b-ffaa32634100